Workbook

Sheet Volatility
A1: Source | B1: Yahoo
A2: Ticker | B2: INTC
A3: Calendar Year | B3: 365
A4: Volatility Days | B4: 50
A5: Start Date | B5: 2018-01-24
A6: Close | B6: =B$1568 -> 43.939999
A7: Current | B7: =D$1568 -> 0.5167634746
A8: Average | B8: =AVERAGE(D:D) -> 0.4347849364
A9: Maximum | B9: =MAX(D:D) -> 1.170416108
A10: Minimum | B10: =MIN(D:D) -> 0.1704016001
A11: Date | B11: Adj Close | C11: Px Change | D11: Volatility
A12: 2018-01-24 | B12: 38.603981
A13: 2018-01-25 | B13: 38.425854 | C13: =LN(B13/B12) -> -0.004624891576
A14: 2018-01-26 | B14: 42.480511 | C14: 0.1003148918
A15: 2018-01-29 | B15: 42.395672 | C15: -0.001999124495
A16: 2018-01-30 | B16: 41.386257 | C16: -0.02409741236
A17: 2018-01-31 | B17: 40.834885 | C17: -0.01341212861
A18: 2018-02-01 | B18: 40.419243 | C18: -0.01023075715
A19: 2018-02-02 | B19: 39.146873 | C19: -0.03198543649
A20: 2018-02-05 | B20: 37.764217 | C20: -0.03595853289
A21: 2018-02-06 | B21: 38.353477 | C21: 0.01548317456
A22: 2018-02-07 | B22: 38.601143 | C22: 0.0064366988
A23: 2018-02-08 | B23: 36.508816 | C23: -0.05572812176
A24: 2018-02-09 | B24: 37.533638 | C24: 0.02768377856
A25: 2018-02-12 | B25: 38.285156 | C25: 0.01982470503
A26: 2018-02-13 | B26: 37.969185 | C26: -0.00828733956
A27: 2018-02-14 | B27: 38.754868 | C27: 0.02048146402
A28: 2018-02-15 | B28: 39.21603 | C28: 0.01182921806
A29: 2018-02-16 | B29: 38.908585 | C29: -0.007870671417
A30: 2018-02-20 | B30: 39.557617 | C30: 0.01654334696
A31: 2018-02-21 | B31: 39.23312 | C31: -0.008236979296
A32: 2018-02-22 | B32: 39.11356 | C32: -0.003052078092
A33: 2018-02-23 | B33: 40.761784 | C33: 0.04127576586
A34: 2018-02-26 | B34: 41.940308 | C34: 0.02850239347
A35: 2018-02-27 | B35: 42.623505 | C35: 0.0161584924
A36: 2018-02-28 | B36: 42.094036 | C36: -0.01249979373
A37: 2018-03-01 | B37: 40.855728 | C37: -0.02985903615
A38: 2018-03-02 | B38: 41.829288 | C38: 0.02354973224
A39: 2018-03-05 | B39: 42.486877 | C39: 0.01559848775
A40: 2018-03-06 | B40: 43.306713 | C40: 0.01911240586
A41: 2018-03-07 | B41: 43.827679 | C41: 0.0119579008
A42: 2018-03-08 | B42: 43.332348 | C42: -0.01136613536
A43: 2018-03-09 | B43: 44.570663 | C43: 0.02817643926
A44: 2018-03-12 | B44: 43.998474 | C44: -0.01292091083
A45: 2018-03-13 | B45: 44.22052 | C45: 0.005033983246
A46: 2018-03-14 | B46: 44.288837 | C46: 0.001543724096
A47: 2018-03-15 | B47: 43.451908 | C47: -0.01907789555
A48: 2018-03-16 | B48: 43.699574 | C48: 0.00568359048
A49: 2018-03-19 | B49: 43.409206 | C49: -0.006666815342
A50: 2018-03-20 | B50: 44.02409 | C50: 0.01406544567
A51: 2018-03-21 | B51: 44.032631 | C51: 0.0001939886003
A52: 2018-03-22 | B52: 43.409206 | C52: -0.01425943427
A53: 2018-03-23 | B53: 42.153812 | C53: -0.02934641916
A54: 2018-03-26 | B54: 44.818314 | C54: 0.06129173126
A55: 2018-03-27 | B55: 43.716648 | C55: -0.02488785988
A56: 2018-03-28 | B56: 42.358776 | C56: -0.03155336552
A57: 2018-03-29 | B57: 44.476715 | C57: 0.04879016867
A58: 2018-04-02 | B58: 41.778038 | C58: -0.06259499904
A59: 2018-04-03 | B59: 42.486877 | C59: 0.01682445702
A60: 2018-04-04 | B60: 42.691833 | C60: 0.004812385526
A61: 2018-04-05 | B61: 43.024906 | C61: 0.007771520015
A62: 2018-04-06 | B62: 41.667038 | C62: -0.03206879672 | D62: =STDEV(C13:C62)*SQRT($B$3) -> 0.5442004339
A63: 2018-04-09 | B63: 42.316071 | C63: 0.01545658238 | D63: 0.5452132076
A64: 2018-04-10 | B64: 43.784969 | C64: 0.03412364199 | D64: 0.4818929043
A65: 2018-04-11 | B65: 43.639786 | C65: -0.003321327774 | D65: 0.4819593631
A66: 2018-04-12 | B66: 45.023277 | C66: 0.03121036551 | D66: 0.4840278011
A67: 2018-04-13 | B67: 44.288837 | C67: -0.01644696386 | D67: 0.4848017262
A68: 2018-04-16 | B68: 44.75 | C68: 0.01035878588 | D68: 0.4842427786
A69: 2018-04-17 | B69: 45.723564 | C69: 0.02152234392 | D69: 0.4777775487
A70: 2018-04-18 | B70: 45.783352 | C70: 0.001306742946 | D70: 0.4655333113
A71: 2018-04-19 | B71: 44.596287 | C71: -0.02626992715 | D71: 0.4713936629
A72: 2018-04-20 | B72: 44.007011 | C72: -0.01330164231 | D72: 0.4733394328
A73: 2018-04-23 | B73: 43.639786 | C73: -0.008379704939 | D73: 0.4463815426
A74: 2018-04-24 | B74: 43.938694 | C74: 0.006826086971 | D74: 0.4415186613
A75: 2018-04-25 | B75: 43.878918 | C75: -0.001361367222 | D75: 0.4392637831
A76: 2018-04-26 | B76: 45.305096 | C76: 0.0319855437 | D76: 0.4451784955
A77: 2018-04-27 | B77: 45.031818 | C77: =LN(B77/B76) -> -0.00605021406 | D77: 0.4434223222
A78: 2018-04-30 | B78: 44.083866 | C78: -0.02127544141 | D78: 0.4475155597
A79: 2018-05-01 | B79: 45.544224 | C79: 0.03258994478 | D79: 0.4539447437
A80: 2018-05-02 | B80: 44.673134 | C80: -0.01931151811 | D80: 0.4563944794
A81: 2018-05-03 | B81: 44.647507 | C81: -0.0005738203492 | D81: 0.4555288634
A82: 2018-05-04 | B82: 45.334667 | C82: 0.01527354426 | D82: 0.4565292337
A83: 2018-05-07 | B83: 45.807079 | C83: 0.01036662674 | D83: 0.4446861336
A84: 2018-05-08 | B84: 46.064766 | C84: 0.005609720274 | D84: 0.4389152764
A85: 2018-05-09 | B85: 46.674603 | C85: 0.013151821 | D85: 0.4382611707
A86: 2018-05-10 | B86: 47.224327 | C86: 0.01170897859 | D86: 0.4372505162
A87: 2018-05-11 | B87: 46.95805 | C87: -0.005654512404 | D87: 0.4287986447
A88: 2018-05-14 | B88: 47.155613 | C88: 0.004198397637 | D88: 0.4249886093
A89: 2018-05-15 | B89: 46.313854 | C89: -0.0180119088 | D89: 0.4269093083
A90: 2018-05-16 | B90: 46.932281 | C90: 0.01326459413 | D90: 0.425424951
A91: 2018-05-17 | B91: 47.078308 | C91: 0.003106609989 | D91: 0.4244920531
A92: 2018-05-18 | B92: 45.953094 | C92: -0.02419116233 | D92: 0.4287648671
A93: 2018-05-21 | B93: 46.657417 | C93: 0.01521072656 | D93: 0.4240881196
A94: 2018-05-22 | B94: 46.769089 | C94: 0.002390586097 | D94: 0.4223813696
A95: 2018-05-23 | B95: 47.421875 | C95: 0.01386112688 | D95: 0.4236463287
A96: 2018-05-24 | B96: 47.026772 | C96: -0.008366563573 | D96: 0.4244663022
A97: 2018-05-25 | B97: 47.619438 | C97: 0.01252398266 | D97: 0.421799999
A98: 2018-05-29 | B98: 47.516365 | C98: -0.002166861204 | D98: 0.4217992859
A99: 2018-05-30 | B99: 47.825577 | C99: 0.006486402052 | D99: 0.4213585357
A100: 2018-05-31 | B100: 47.413292 | C100: -0.008657968742 | D100: 0.4209593661
A101: 2018-06-01 | B101: 49.028091 | C101: 0.03349080823 | D101: 0.4297214954
A102: 2018-06-04 | B102: 48.813358 | C102: -0.004389414649 | D102: 0.4277369815
A103: 2018-06-05 | B103: 48.555683 | C103: -0.00529276244 | D103: 0.4193153039
A104: 2018-06-06 | B104: 48.985138 | C104: 0.008805703512 | D104: 0.387582512
A105: 2018-06-07 | B105: 47.997368 | C105: -0.02037076991 | D105: 0.3854538405
A106: 2018-06-08 | B106: 47.284454 | C106: -0.01496460267 | D106: 0.3772581748
A107: 2018-06-11 | B107: 46.829212 | C107: -0.009674377165 | D107: 0.3559435873
A108: 2018-06-12 | B108: 47.086906 | C108: 0.005487761892 | D108: 0.3098353521
A109: 2018-06-13 | B109: 47.267273 | C109: 0.003823195149 | D109: 0.3073052606
A110: 2018-06-14 | B110: 47.705322 | C110: 0.009224810723 | D110: 0.3078227064
A111: 2018-06-15 | B111: 47.335995 | C111: -0.007771964251 | D111: 0.3085986343
A112: 2018-06-18 | B112: 45.712593 | C112: -0.03489718182 | D112: 0.3110036634
A113: 2018-06-19 | B113: 45.46352 | C113: -0.005463571793 | D113: 0.309319305
A114: 2018-06-20 | B114: 45.918747 | C114: 0.009963218919 | D114: 0.2969404014
A115: 2018-06-21 | B115: 44.8279 | C115: -0.02404275162 | D115: 0.3043470999
A116: 2018-06-22 | B116: 45.094158 | C116: 0.005921990312 | D116: 0.2928131911
A117: 2018-06-25 | B117: 43.556656 | C117: -0.03469017631 | D117: 0.3043808942
A118: 2018-06-26 | B118: 42.663376 | C118: -0.02072168016 | D118: 0.3078126572
A119: 2018-06-27 | B119: 41.881737 | C119: -0.01849098649 | D119: 0.3050201388
A120: 2018-06-28 | B120: 42.302616 | C120: 0.009999067325 | D120: 0.3065703392
A121: 2018-06-29 | B121: 42.697727 | C121: 0.009296758856 | D121: 0.3002300372
A122: 2018-07-02 | B122: 43.11861 | C122: 0.009809003492 | D122: 0.2995944271
A123: 2018-07-03 | B123: 42.491592 | C123: -0.0146484694 | D123: 0.3013107937
A124: 2018-07-05 | B124: 43.591019 | C124: 0.02554492183 | D124: 0.3088663068
A125: 2018-07-06 | B125: 44.123566 | C125: 0.01214287324 | D125: 0.310624748
A126: 2018-07-09 | B126: 44.544445 | C126: 0.009493438642 | D126: =STDEV(C77:C126)*SQRT($B$3) -> 0.2991656819
A127: 2018-07-10 | B127: 44.802124 | C127: 0.005768094227 | D127: 0.2991890452
A128: 2018-07-11 | B128: 43.977543 | C128: -0.01857643175 | D128: 0.2978521367
A129: 2018-07-12 | B129: 44.965313 | C129: 0.02221225305 | D129: 0.2906131415
A130: 2018-07-13 | B130: 44.853668 | C130: -0.002486001428 | D130: 0.2859125876
A131: 2018-07-16 | B131: 44.67329 | C131: -0.004029585012 | D131: 0.2861238925
A132: 2018-07-17 | B132: 44.449966 | C132: -0.005011586817 | D132: 0.2832992237
A133: 2018-07-18 | B133: 44.424198 | C133: -0.0005798760756 | D133: 0.281741557
A134: 2018-07-19 | B134: 44.647522 | C134: 0.005014486483 | D134: 0.2816482007
A135: 2018-07-20 | B135: 44.587379 | C135: -0.001347970546 | D135: 0.2790778745
A136: 2018-07-23 | B136: 44.930962 | C136: 0.007676297021 | D136: 0.2779293879
A137: 2018-07-24 | B137: 44.819305 | C137: -0.002488172155 | D137: 0.2776655614
A138: 2018-07-25 | B138: 45.034042 | C138: 0.004779730883 | D138: 0.2777500071
A139: 2018-07-26 | B139: 44.802124 | C139: -0.005163143654 | D139: 0.2740047827
A140: 2018-07-27 | B140: 40.954082 | C140: -0.08980406114 | D140: 0.3622713204
A141: 2018-07-30 | B141: 40.962681 | C141: =LN(B141/B140) -> 0.00020994482 | D141: 0.3620084228
A142: 2018-07-31 | B142: 41.314846 | C142: 0.008560469996 | D142: 0.358378091
A143: 2018-08-01 | B143: 41.924686 | C143: 0.01465291543 | D143: 0.3581801761
A144: 2018-08-02 | B144: 42.500175 | C144: 0.01363337545 | D144: 0.3605197163
A145: 2018-08-03 | B145: 42.629021 | C145: 0.003027071896 | D145: 0.3581690672
A146: 2018-08-06 | B146: 42.603085 | C146: -0.0006085969717 | D146: 0.3577761058
A147: 2018-08-07 | B147: 42.94875 | C147: 0.008080875904 | D147: 0.3566343572
A148: 2018-08-08 | B148: 43.173439 | C148: 0.005217923799 | D148: 0.3571763258
A149: 2018-08-09 | B149: 43.328983 | C149: 0.003596296243 | D149: 0.3567549313
A150: 2018-08-10 | B150: 42.214222 | C150: -0.02606458596 | D150: 0.3622416547
A151: 2018-08-13 | B151: 41.868557 | C151: -0.008222062863 | D151: 0.3488048086
A152: 2018-08-14 | B152: 41.583374 | C152: -0.006834691702 | D152: 0.3489317044
A153: 2018-08-15 | B153: 41.013031 | C153: -0.01381057844 | D153: 0.3500682357
A154: 2018-08-16 | B154: 40.762432 | C154: -0.006128972561 | D154: 0.3485190339
A155: 2018-08-17 | B155: 40.701935 | C155: -0.001485238598 | D155: 0.3455021567
A156: 2018-08-20 | B156: 40.183449 | C156: -0.01282043989 | D156: 0.3450110271
A157: 2018-08-21 | B157: 41.151299 | C157: 0.02380029963 | D157: 0.352152021
A158: 2018-08-22 | B158: 40.658726 | C158: -0.01204201936 | D158: 0.3523435987
A159: 2018-08-23 | B159: 40.598236 | C159: -0.001488857316 | D159: 0.3518765655
A160: 2018-08-24 | B160: 41.185863 | C160: 0.01437044902 | D160: 0.35348375
A161: 2018-08-27 | B161: 41.782143 | C161: 0.01437398089 | D161: 0.356281411
A162: 2018-08-28 | B162: 41.972248 | C162: 0.004539590682 | D162: 0.3453306743
A163: 2018-08-29 | B163: 42.127811 | C163: 0.003699478437 | D163: 0.3454756468
A164: 2018-08-30 | B164: 41.687088 | C164: -0.01051667585 | D164: 0.34483383
A165: 2018-08-31 | B165: 41.851273 | C165: 0.003930774064 | D165: 0.3397187293
A166: 2018-09-04 | B166: 41.445114 | C166: -0.00975221696 | D166: 0.3398507486
A167: 2018-09-05 | B167: 41.237717 | C167: -0.005016698932 | D167: 0.3276228431
A168: 2018-09-06 | B168: 40.840191 | C168: -0.009686628669 | D168: 0.3240353534
A169: 2018-09-07 | B169: 40.14024 | C169: -0.01728734765 | D169: 0.3235638627
A170: 2018-09-10 | B170: 40.010616 | C170: -0.003234503522 | D170: 0.3222315799
A171: 2018-09-11 | B171: 38.826702 | C171: -0.03003661309 | D171: 0.3301916219
A172: 2018-09-12 | B172: 38.826702 | C172: 0 | D172: 0.328660453
A173: 2018-09-13 | B173: 39.379772 | C173: 0.01414407765 | D173: 0.3296748195
A174: 2018-09-14 | B174: 39.353848 | C174: -0.0006585242984 | D174: 0.3211414785
A175: 2018-09-17 | B175: 39.250145 | C175: -0.002638620666 | D175: 0.3187513808
A176: 2018-09-18 | B176: 39.837776 | C176: 0.01486046938 | D176: 0.3205603802
A177: 2018-09-19 | B177: 39.880989 | C177: 0.001084136319 | D177: 0.3199386773
A178: 2018-09-20 | B178: 40.788353 | C178: 0.02249683079 | D178: 0.3236245797
A179: 2018-09-21 | B179: 40.321709 | C179: -0.01150656619 | D179: 0.3179908457
A180: 2018-09-24 | B180: 40.537746 | C180: 0.005343531293 | D180: 0.3186377088
A181: 2018-09-25 | B181: 39.67358 | C181: -0.0215480651 | D181: 0.3229456959
A182: 2018-09-26 | B182: 39.492111 | C182: -0.004584544531 | D182: 0.3229217739
A183: 2018-09-27 | B183: 39.647671 | C183: 0.003931276949 | D183: 0.3233373182
A184: 2018-09-28 | B184: 40.866138 | C184: 0.03026959098 | D184: 0.3345830109
A185: 2018-10-01 | B185: 40.14024 | C185: -0.01792247595 | D185: 0.3374122251
A186: 2018-10-02 | B186: 41.566101 | C186: 0.03490563284 | D186: 0.3510355333
A187: 2018-10-03 | B187: 42.13644 | C187: 0.01362796924 | D187: 0.3534096277
A188: 2018-10-04 | B188: 41.592026 | C188: -0.0130044583 | D188: 0.3544202663
A189: 2018-10-05 | B189: 40.641445 | C189: -0.02312010746 | D189: 0.3590591442
A190: 2018-10-08 | B190: 40.641445 | C190: 0 | D190: =STDEV(C141:C190)*SQRT($B$3) -> 0.265057922
A191: 2018-10-09 | B191: 40.22665 | C191: -0.01025864744 | D191: 0.266456513
A192: 2018-10-10 | B192: 38.714367 | C192: -0.03831893985 | D192: 0.2842712915
A193: 2018-10-11 | B193: 38.221798 | C193: -0.01280479031 | D193: 0.2824676497
A194: 2018-10-12 | B194: 38.783504 | C194: 0.01458902045 | D194: 0.2828693521
A195: 2018-10-15 | B195: 38.481049 | C195: -0.007829115245 | D195: 0.2830014552
A196: 2018-10-16 | B196: 39.699516 | C196: 0.03117310984 | D196: 0.2968916085
A197: 2018-10-17 | B197: 39.656307 | C197: -0.001088993917 | D197: 0.2957391559
A198: 2018-10-18 | B198: 38.861279 | C198: -0.02025164584 | D198: 0.2993525788
A199: 2018-10-19 | B199: 38.023045 | C199: -0.02180593315 | D199: 0.3035869366
A200: 2018-10-22 | B200: 38.895844 | C200: 0.02269498359 | D200: 0.3041131204
... 1368 more rows
